[Event "Titled Tuesday Blitz March 21 Late 2023"]
[White "Duda, Jan-Krzysztof"]
[Black "Timofeev, Artyom"]
[WhiteFideId "1170546"]
[BlackFideId "4140419"]
[WhiteElo "2790"]
[BlackElo "2586"]
[Result "1-0"]
[Round "11"]
[TimeControl "180+2"]
[Date "2023.03.21"]
[WhiteClock "0:00:13"]
[BlackClock "0:00:04"]

1. b4 {[%clk 0:03:00]}  e5 {[%clk 0:02:58]} 2. Bb2 {[%clk 0:03:01]}  Bxb4 {[%clk 0:02:58]} 3. Bxe5 {[%clk 0:03:01]}  Nf6 {[%clk 0:02:58]} 4. e3 {[%clk 0:03:02]}  O-O {[%clk 0:02:56]} 5. Nf3 {[%clk 0:03:02]}  d5 {[%clk 0:02:54]} 6. c4 {[%clk 0:03:02]}  Nc6 {[%clk 0:02:49]} 7. Bb2 {[%clk 0:03:01]}  Bg4 {[%clk 0:02:42]} 8. a3 {[%clk 0:02:59]}  Be7 {[%clk 0:02:40]} 9. cxd5 {[%clk 0:02:57]}  Nxd5 {[%clk 0:02:39]} 10. Be2 {[%clk 0:02:56]}  Bf6 {[%clk 0:02:38]} 11. d4 {[%clk 0:02:55]}  Re8 {[%clk 0:02:37]} 12. O-O {[%clk 0:02:55]}  Na5 {[%clk 0:02:27]} 13. h3 {[%clk 0:02:53]}  Bh5 {[%clk 0:02:26]} 14. Ne1 {[%clk 0:01:57]}  Bxe2 {[%clk 0:02:05]} 15. Qxe2 {[%clk 0:01:58]}  c5 {[%clk 0:02:04]} 16. dxc5 {[%clk 0:01:56]}  Nb3 {[%clk 0:02:01]} 17. Ra2 {[%clk 0:01:55]}  Nxc5 {[%clk 0:02:00]} 18. Nd3 {[%clk 0:01:44]}  Ne4 {[%clk 0:01:30]} 19. Nb4 {[%clk 0:01:34]}  a5 {[%clk 0:01:18]} 20. Nxd5 {[%clk 0:01:32]}  Qxd5 {[%clk 0:01:18]} 21. Bxf6 {[%clk 0:01:33]}  Nxf6 {[%clk 0:01:17]} 22. Nc3 {[%clk 0:01:31]}  Qc6 {[%clk 0:01:14]} 23. Nb5 {[%clk 0:01:31]}  Rad8 {[%clk 0:01:10]} 24. Rb2 {[%clk 0:01:30]}  Ne4 {[%clk 0:01:07]} 25. Rc2 {[%clk 0:01:16]}  Qg6 {[%clk 0:01:05]} 26. Rfc1 {[%clk 0:01:16]}  h6 {[%clk 0:01:04]} 27. Nd4 {[%clk 0:01:15]}  Qf6 {[%clk 0:00:40]} 28. Rc7 {[%clk 0:01:09]}  Re7 {[%clk 0:00:31]} 29. Qf3 {[%clk 0:01:00]}  Rxc7 {[%clk 0:00:29]} 30. Rxc7 {[%clk 0:01:01]}  Qxf3 {[%clk 0:00:29]} 31. gxf3 {[%clk 0:01:02]}  Nd6 {[%clk 0:00:28]} 32. a4 {[%clk 0:00:56]}  Rb8 {[%clk 0:00:15]} 33. Rc5 {[%clk 0:00:48]}  b6 {[%clk 0:00:15]} 34. Rc6 {[%clk 0:00:49]}  Nc8 {[%clk 0:00:11]} 35. f4 {[%clk 0:00:36]}  Ne7 {[%clk 0:00:11]} 36. Rd6 {[%clk 0:00:36]}  Kf8 {[%clk 0:00:10]} 37. f5 {[%clk 0:00:33]}  Ke8 {[%clk 0:00:10]} 38. f6 {[%clk 0:00:32]}  gxf6 {[%clk 0:00:10]} 39. Rxf6 {[%clk 0:00:33]}  Ng8 {[%clk 0:00:09]} 40. Rd6 {[%clk 0:00:32]}  Ke7 {[%clk 0:00:08]} 41. Nf5+ {[%clk 0:00:29]}  Ke8 {[%clk 0:00:07]} 42. Nxh6 {[%clk 0:00:29]}  Nxh6 {[%clk 0:00:07]} 43. Rxh6 {[%clk 0:00:30]}  Ke7 {[%clk 0:00:07]} 44. Kg2 {[%clk 0:00:23]}  b5 {[%clk 0:00:07]} 45. axb5 {[%clk 0:00:24]}  Rxb5 {[%clk 0:00:07]} 46. Ra6 {[%clk 0:00:25]}  f5 {[%clk 0:00:06]} 47. Kg3 {[%clk 0:00:24]}  Kf7 {[%clk 0:00:06]} 48. Kf4 {[%clk 0:00:24]}  Ke7 {[%clk 0:00:07]} 49. h4 {[%clk 0:00:24]}  Kf7 {[%clk 0:00:05]} 50. h5 {[%clk 0:00:24]}  Kg7 {[%clk 0:00:05]} 51. Kg5 {[%clk 0:00:21]}  f4+ {[%clk 0:00:03]} 52. Kxf4 {[%clk 0:00:21]}  Rxh5 {[%clk 0:00:04]} 53. e4 {[%clk 0:00:21]}  Rb5 {[%clk 0:00:04]} 54. e5 {[%clk 0:00:20]}  Kf7 {[%clk 0:00:02]} 55. Kf5 {[%clk 0:00:20]}  Ke7 {[%clk 0:00:03]} 56. f4 {[%clk 0:00:19]}  Kd8 {[%clk 0:00:03]} 57. Kf6 {[%clk 0:00:19]}  Kc7 {[%clk 0:00:03]} 58. e6 {[%clk 0:00:20]}  Kb7 {[%clk 0:00:04]} 59. e7 {[%clk 0:00:13]} 1-0


[Site "https://www.chess.com"]

[Event "Titled Tuesday Blitz March 21 Late 2023"]
[White "Averjanov, Alexey"]
[Black "Deac, Bogdan-Daniel"]
[WhiteFideId "14109867"]
[BlackFideId "1226380"]
[WhiteElo "2801"]
[BlackElo "2649"]
[Result "0-1"]
[Round "11"]
[TimeControl "180+2"]
[Date "2023.03.21"]
[WhiteClock "0:00:03"]
[BlackClock "0:00:08"]

1. d4 {[%clk 0:03:00]}  Nf6 {[%clk 0:02:57]} 2. c4 {[%clk 0:03:01]}  e6 {[%clk 0:02:57]} 3. Nf3 {[%clk 0:03:00]}  b6 {[%clk 0:02:57]} 4. g3 {[%clk 0:03:00]}  Ba6 {[%clk 0:02:57]} 5. Nbd2 {[%clk 0:03:00]}  d5 {[%clk 0:02:56]} 6. b3 {[%clk 0:02:56]}  c5 {[%clk 0:02:34]} 7. Bb2 {[%clk 0:02:46]}  Nc6 {[%clk 0:02:34]} 8. dxc5 {[%clk 0:02:41]}  bxc5 {[%clk 0:02:33]} 9. cxd5 {[%clk 0:02:36]}  exd5 {[%clk 0:02:32]} 10. Bg2 {[%clk 0:02:36]}  Rc8 {[%clk 0:02:28]} 11. O-O {[%clk 0:02:36]}  Be7 {[%clk 0:02:28]} 12. Re1 {[%clk 0:02:33]}  O-O {[%clk 0:02:27]} 13. a3 {[%clk 0:02:32]}  Qb6 {[%clk 0:02:25]} 14. Qc2 {[%clk 0:02:30]}  Bb7 {[%clk 0:02:18]} 15. Qf5 {[%clk 0:02:22]}  Rcd8 {[%clk 0:02:09]} 16. Ng5 {[%clk 0:02:14]}  g6 {[%clk 0:02:04]} 17. Qf4 {[%clk 0:02:13]}  Nh5 {[%clk 0:01:59]} 18. Qh4 {[%clk 0:01:52]}  h6 {[%clk 0:01:48]} 19. Ndf3 {[%clk 0:01:52]}  hxg5 {[%clk 0:01:48]} 20. Nxg5 {[%clk 0:01:52]}  Nd4 {[%clk 0:01:49]} 21. g4 {[%clk 0:01:43]}  Ne6 {[%clk 0:01:33]} 22. f4 {[%clk 0:01:33]}  Nxg5 {[%clk 0:00:32]} 23. fxg5 {[%clk 0:01:30]}  Ng7 {[%clk 0:00:32]} 24. Rad1 {[%clk 0:01:23]}  f6 {[%clk 0:00:21]} 25. Rd3 {[%clk 0:01:17]}  c4+ {[%clk 0:00:21]} 26. Bd4 {[%clk 0:01:16]}  Bc5 {[%clk 0:00:21]} 27. Rh3 {[%clk 0:00:52]}  Bxd4+ {[%clk 0:00:21]} 28. Kh1 {[%clk 0:00:52]}  Kf7 {[%clk 0:00:21]} 29. gxf6 {[%clk 0:00:48]}  Bxf6 {[%clk 0:00:18]} 30. g5 {[%clk 0:00:47]}  Nf5 {[%clk 0:00:18]} 31. Qf4 {[%clk 0:00:39]}  Bg7 {[%clk 0:00:15]} 32. bxc4 {[%clk 0:00:38]}  Qd4 {[%clk 0:00:15]} 33. Qc7+ {[%clk 0:00:32]}  Kg8 {[%clk 0:00:15]} 34. Qxb7 {[%clk 0:00:32]}  Qxc4 {[%clk 0:00:15]} 35. Rd1 {[%clk 0:00:29]}  d4 {[%clk 0:00:15]} 36. Rhd3 {[%clk 0:00:23]}  Qe6 {[%clk 0:00:14]} 37. Qxa7 {[%clk 0:00:16]}  Ne3 {[%clk 0:00:12]} 38. Rg1 {[%clk 0:00:11]}  Nxg2 {[%clk 0:00:11]} 39. Rxg2 {[%clk 0:00:12]}  Rf1+ {[%clk 0:00:11]} 40. Rg1 {[%clk 0:00:12]}  Qe4+ {[%clk 0:00:11]} 41. Rf3 {[%clk 0:00:12]}  Rxf3 {[%clk 0:00:11]} 42. exf3 {[%clk 0:00:13]}  Qxf3+ {[%clk 0:00:12]} 43. Rg2 {[%clk 0:00:13]}  d3 {[%clk 0:00:11]} 44. Qb6 {[%clk 0:00:12]}  Re8 {[%clk 0:00:08]} 45. Qb3+ {[%clk 0:00:08]}  Kh8 {[%clk 0:00:07]} 46. h4 {[%clk 0:00:02]}  Re1+ {[%clk 0:00:07]} 47. Kh2 {[%clk 0:00:03]}  Be5+ {[%clk 0:00:07]} 48. Rg3 {[%clk 0:00:03]}  Qxg3# {[%clk 0:00:08]} 0-1


[Site "https://www.chess.com"]

[Event "Titled Tuesday Blitz March 21 Late 2023"]
[White "Korchmar, Vasiliy"]
[Black "Zhigalko, Sergei"]
[WhiteFideId "24131750"]
[BlackFideId "13502956"]
[WhiteElo "2370"]
[BlackElo "2626"]
[Result "0-1"]
[Round "11"]
[TimeControl "180+2"]
[Date "2023.03.21"]
[WhiteClock "0:00:01"]
[BlackClock "0:00:12"]

1. e4 {[%clk 0:03:00]}  Nf6 {[%clk 0:02:57]} 2. e5 {[%clk 0:03:00]}  Nd5 {[%clk 0:02:57]} 3. d4 {[%clk 0:03:01]}  Nb6 {[%clk 0:02:57]} 4. Nf3 {[%clk 0:03:00]}  d5 {[%clk 0:02:57]} 5. Bd3 {[%clk 0:02:56]}  Bg4 {[%clk 0:02:56]} 6. h3 {[%clk 0:02:57]}  Bxf3 {[%clk 0:02:56]} 7. Qxf3 {[%clk 0:02:57]}  e6 {[%clk 0:02:57]} 8. Qg3 {[%clk 0:02:53]}  c5 {[%clk 0:02:57]} 9. dxc5 {[%clk 0:02:46]}  N6d7 {[%clk 0:02:57]} 10. b4 {[%clk 0:02:43]}  Nc6 {[%clk 0:02:55]} 11. a3 {[%clk 0:02:30]}  Ncxe5 {[%clk 0:02:48]} 12. Bb5 {[%clk 0:02:22]}  a6 {[%clk 0:02:22]} 13. Ba4 {[%clk 0:02:22]}  Nc4 {[%clk 0:01:58]} 14. O-O {[%clk 0:02:15]}  Be7 {[%clk 0:01:58]} 15. Nd2 {[%clk 0:01:54]}  Nxd2 {[%clk 0:01:31]} 16. Bxd2 {[%clk 0:01:55]}  Bf6 {[%clk 0:01:29]} 17. Rad1 {[%clk 0:01:55]}  O-O {[%clk 0:01:28]} 18. Bf4 {[%clk 0:01:27]}  b5 {[%clk 0:01:19]} 19. cxb6 {[%clk 0:01:15]}  e5 {[%clk 0:00:49]} 20. Rxd5 {[%clk 0:00:43]}  exf4 {[%clk 0:00:48]} 21. Qd3 {[%clk 0:00:33]}  Nxb6 {[%clk 0:00:21]} 22. Rxd8 {[%clk 0:00:32]}  Rfxd8 {[%clk 0:00:22]} 23. Qb3 {[%clk 0:00:28]}  Rac8 {[%clk 0:00:22]} 24. b5 {[%clk 0:00:10]}  a5 {[%clk 0:00:23]} 25. Qf3 {[%clk 0:00:04]}  Nxa4 {[%clk 0:00:20]} 26. Qxf4 {[%clk 0:00:04]}  Nc3 {[%clk 0:00:20]} 27. Qf5 {[%clk 0:00:03]}  Rb8 {[%clk 0:00:16]} 28. a4 {[%clk 0:00:02]}  Nxa4 {[%clk 0:00:16]} 29. c4 {[%clk 0:00:01]}  Rdc8 {[%clk 0:00:12]} 30. Rc1 {[%clk 0:00:01]}  Nc3 {[%clk 0:00:12]} 0-1


[Site "https://www.chess.com"]

[Event "Titled Tuesday Blitz March 21 Late 2023"]
[White "Martinez Alcantara, Jose Eduardo"]
[Black "Diaz Perez, Michel Alejandro"]
[WhiteFideId "3805662"]
[BlackFideId "3517179"]
[WhiteElo "2712"]
[BlackElo "2333"]
[Result "1-0"]
[Round "11"]
[TimeControl "180+2"]
[Date "2023.03.21"]
[WhiteClock "0:01:28"]
[BlackClock "0:00:44"]

1. c4 {[%clk 0:02:59]}  Nf6 {[%clk 0:02:58]} 2. g3 {[%clk 0:02:59]}  e6 {[%clk 0:02:56]} 3. Bg2 {[%clk 0:03:00]}  d5 {[%clk 0:02:57]} 4. Nf3 {[%clk 0:03:01]}  Be7 {[%clk 0:02:57]} 5. O-O {[%clk 0:03:01]}  O-O {[%clk 0:02:58]} 6. b3 {[%clk 0:02:58]}  b6 {[%clk 0:02:58]} 7. Bb2 {[%clk 0:02:58]}  Bb7 {[%clk 0:02:59]} 8. e3 {[%clk 0:02:58]}  c5 {[%clk 0:02:58]} 9. Qe2 {[%clk 0:02:58]}  Qc8 {[%clk 0:02:58]} 10. Nc3 {[%clk 0:02:52]}  Rd8 {[%clk 0:02:57]} 11. d3 {[%clk 0:02:48]}  Nc6 {[%clk 0:02:56]} 12. Rfd1 {[%clk 0:02:47]}  d4 {[%clk 0:02:45]} 13. exd4 {[%clk 0:02:47]}  Nxd4 {[%clk 0:02:46]} 14. Nxd4 {[%clk 0:02:47]}  cxd4 {[%clk 0:02:47]} 15. Bxb7 {[%clk 0:02:46]}  Qxb7 {[%clk 0:02:46]} 16. Nb5 {[%clk 0:02:47]}  Bc5 {[%clk 0:02:45]} 17. b4 {[%clk 0:02:47]}  Bxb4 {[%clk 0:02:36]} 18. Nxd4 {[%clk 0:02:46]}  Bf8 {[%clk 0:02:24]} 19. Nf3 {[%clk 0:02:47]}  Nd7 {[%clk 0:02:24]} 20. d4 {[%clk 0:02:47]}  Rac8 {[%clk 0:02:23]} 21. d5 {[%clk 0:02:45]}  exd5 {[%clk 0:02:23]} 22. Rxd5 {[%clk 0:02:46]}  Nc5 {[%clk 0:02:19]} 23. Rad1 {[%clk 0:02:40]}  Re8 {[%clk 0:02:19]} 24. Qc2 {[%clk 0:02:37]}  h6 {[%clk 0:02:15]} 25. Ne5 {[%clk 0:02:22]}  Qe7 {[%clk 0:01:49]} 26. Qf5 {[%clk 0:02:07]}  Qe6 {[%clk 0:01:47]} 27. Qf3 {[%clk 0:02:04]}  f6 {[%clk 0:01:16]} 28. Ng6 {[%clk 0:01:59]}  Qe4 {[%clk 0:01:16]} 29. Qh5 {[%clk 0:01:53]}  Ne6 {[%clk 0:01:08]} 30. h4 {[%clk 0:01:41]}  Rxc4 {[%clk 0:01:03]} 31. Ne5 {[%clk 0:01:38]}  Rcc8 {[%clk 0:00:51]} 32. Qf7+ {[%clk 0:01:32]}  Kh7 {[%clk 0:00:51]} 33. Nd7 {[%clk 0:01:30]}  Qg6 {[%clk 0:00:44]} 34. Nxf6+ {[%clk 0:01:28]} 1-0


[Site "https://www.chess.com"]

[Event "Titled Tuesday Blitz March 21 Late 2023"]
[White "Hansen, Eric"]
[Black "Drygalov, Andrey"]
[WhiteFideId "2606771"]
[BlackFideId "24171735"]
[WhiteElo "2569"]
[BlackElo "2471"]
[Result "0-1"]
[Round "11"]
[TimeControl "180+2"]
[Date "2023.03.21"]
[WhiteClock "0:00:01"]
[BlackClock "0:00:06"]

1. d4 {[%clk 0:03:00]}  Nf6 {[%clk 0:02:59]} 2. Bg5 {[%clk 0:02:59]}  d5 {[%clk 0:02:59]} 3. Nd2 {[%clk 0:02:57]}  c5 {[%clk 0:02:59]} 4. e3 {[%clk 0:02:57]}  Nc6 {[%clk 0:02:59]} 5. c3 {[%clk 0:02:51]}  e5 {[%clk 0:02:56]} 6. dxe5 {[%clk 0:02:48]}  Nxe5 {[%clk 0:02:55]} 7. Ngf3 {[%clk 0:02:49]}  Nc6 {[%clk 0:02:51]} 8. Bb5 {[%clk 0:02:49]}  Be7 {[%clk 0:02:43]} 9. O-O {[%clk 0:02:45]}  O-O {[%clk 0:02:43]} 10. Qc2 {[%clk 0:02:46]}  Be6 {[%clk 0:02:39]} 11. Rad1 {[%clk 0:02:45]}  Qb6 {[%clk 0:02:36]} 12. Bd3 {[%clk 0:02:43]}  h6 {[%clk 0:02:35]} 13. Bh4 {[%clk 0:02:43]}  Rfe8 {[%clk 0:02:33]} 14. Rfe1 {[%clk 0:02:43]}  Rac8 {[%clk 0:02:31]} 15. a3 {[%clk 0:02:41]}  Qc7 {[%clk 0:02:27]} 16. c4 {[%clk 0:02:35]}  Rcd8 {[%clk 0:02:23]} 17. Bf5 {[%clk 0:02:34]}  Bxf5 {[%clk 0:02:07]} 18. Qxf5 {[%clk 0:02:34]}  Qd7 {[%clk 0:01:58]} 19. Qc2 {[%clk 0:02:10]}  b6 {[%clk 0:01:48]} 20. cxd5 {[%clk 0:02:03]}  Qxd5 {[%clk 0:01:47]} 21. Nc4 {[%clk 0:02:01]}  Qe4 {[%clk 0:01:42]} 22. Qb3 {[%clk 0:02:00]}  Rd5 {[%clk 0:01:23]} 23. Bxf6 {[%clk 0:01:56]}  gxf6 {[%clk 0:01:18]} 24. Rxd5 {[%clk 0:01:28]}  Qxd5 {[%clk 0:01:18]} 25. e4 {[%clk 0:01:11]}  Qe6 {[%clk 0:01:18]} 26. Nh4 {[%clk 0:01:11]}  Nd4 {[%clk 0:01:14]} 27. Qd3 {[%clk 0:00:46]}  f5 {[%clk 0:01:07]} 28. Nf3 {[%clk 0:00:39]}  Nxf3+ {[%clk 0:01:04]} 29. gxf3 {[%clk 0:00:40]}  Rd8 {[%clk 0:01:03]} 30. Qc2 {[%clk 0:00:36]}  Rd4 {[%clk 0:01:00]} 31. b3 {[%clk 0:00:30]}  b5 {[%clk 0:00:58]} 32. Ne3 {[%clk 0:00:26]}  fxe4 {[%clk 0:00:56]} 33. f4 {[%clk 0:00:26]}  Bd6 {[%clk 0:00:50]} 34. f5 {[%clk 0:00:15]}  Qe5 {[%clk 0:00:48]} 35. Ng4 {[%clk 0:00:14]}  Qf4 {[%clk 0:00:39]} 36. Nf6+ {[%clk 0:00:12]}  Kh8 {[%clk 0:00:36]} 37. Rxe4 {[%clk 0:00:09]}  Qxh2+ {[%clk 0:00:30]} 38. Kf1 {[%clk 0:00:10]}  Qh1+ {[%clk 0:00:26]} 39. Ke2 {[%clk 0:00:10]}  Rxe4+ {[%clk 0:00:12]} 40. Nxe4 {[%clk 0:00:10]}  Qh5+ {[%clk 0:00:12]} 41. Ke1 {[%clk 0:00:05]}  Qxf5 {[%clk 0:00:10]} 42. Qd3 {[%clk 0:00:03]}  Be7 {[%clk 0:00:10]} 43. Qe3 {[%clk 0:00:02]}  Kh7 {[%clk 0:00:08]} 44. Qd3 {[%clk 0:00:02]}  Kh8 {[%clk 0:00:07]} 45. Qe3 {[%clk 0:00:02]}  Bg5 {[%clk 0:00:07]} 46. Qd3 {[%clk 0:00:02]}  Qe5 {[%clk 0:00:07]} 47. Kf1 {[%clk 0:00:02]}  Be7 {[%clk 0:00:06]} 48. Ng3 {[%clk 0:00:02]}  Qa1+ {[%clk 0:00:04]} 49. Kg2 {[%clk 0:00:02]}  Qe5 {[%clk 0:00:05]} 50. Qxb5 {[%clk 0:00:03]}  Qd5+ {[%clk 0:00:05]} 51. Kf1 {[%clk 0:00:03]}  Bd6 {[%clk 0:00:05]} 52. Qe8+ {[%clk 0:00:02]}  Kg7 {[%clk 0:00:06]} 53. Ne4 {[%clk 0:00:02]}  Be5 {[%clk 0:00:06]} 54. Ng3 {[%clk 0:00:02]}  Qd3+ {[%clk 0:00:06]} 55. Ne2 {[%clk 0:00:02]}  Qd1+ {[%clk 0:00:05]} 56. Kg2 {[%clk 0:00:01]}  Qxe2 {[%clk 0:00:06]} 0-1


[Site "https://www.chess.com"]

[Event "Titled Tuesday Blitz March 21 Late 2023"]
[White "Chigaev, Maksim"]
[Black "Terry, Renato"]
[WhiteFideId "4108116"]
[BlackFideId "3803457"]
[WhiteElo "2547"]
[BlackElo "2579"]
[Result "0-1"]
[Round "11"]
[TimeControl "180+2"]
[Date "2023.03.21"]
[WhiteClock "0:00:01"]
[BlackClock "0:00:48"]

1. f4 {[%clk 0:03:00]}  d5 {[%clk 0:02:59]} 2. Nf3 {[%clk 0:03:00]}  g6 {[%clk 0:03:00]} 3. g3 {[%clk 0:03:00]}  Bg7 {[%clk 0:03:01]} 4. Bg2 {[%clk 0:03:01]}  Nh6 {[%clk 0:03:01]} 5. O-O {[%clk 0:03:00]}  O-O {[%clk 0:03:02]} 6. d3 {[%clk 0:02:57]}  d4 {[%clk 0:03:00]} 7. c3 {[%clk 0:02:55]}  c5 {[%clk 0:02:59]} 8. Kh1 {[%clk 0:02:54]}  Nc6 {[%clk 0:02:59]} 9. Qe1 {[%clk 0:02:55]}  Nf5 {[%clk 0:02:54]} 10. Na3 {[%clk 0:02:55]}  Rb8 {[%clk 0:02:48]} 11. Nc2 {[%clk 0:02:48]}  b5 {[%clk 0:02:48]} 12. g4 {[%clk 0:02:42]}  Nd6 {[%clk 0:02:48]} 13. f5 {[%clk 0:02:43]}  gxf5 {[%clk 0:02:27]} 14. gxf5 {[%clk 0:02:08]}  Nxf5 {[%clk 0:02:26]} 15. Bf4 {[%clk 0:01:58]}  e5 {[%clk 0:02:23]} 16. Bg5 {[%clk 0:01:58]}  f6 {[%clk 0:02:22]} 17. Bd2 {[%clk 0:01:58]}  Nce7 {[%clk 0:02:15]} 18. b4 {[%clk 0:01:38]}  c4 {[%clk 0:01:43]} 19. dxc4 {[%clk 0:01:20]}  bxc4 {[%clk 0:01:41]} 20. Rd1 {[%clk 0:01:20]}  d3 {[%clk 0:01:35]} 21. exd3 {[%clk 0:01:11]}  cxd3 {[%clk 0:01:35]} 22. Ne3 {[%clk 0:01:11]}  Be6 {[%clk 0:01:27]} 23. Nxf5 {[%clk 0:01:02]}  Nxf5 {[%clk 0:01:27]} 24. Qe4 {[%clk 0:00:55]}  Qd5 {[%clk 0:01:28]} 25. Ng5 {[%clk 0:00:40]}  Qxe4 {[%clk 0:01:23]} 26. Nxe4 {[%clk 0:00:40]}  Nh4 {[%clk 0:01:18]} 27. Nc5 {[%clk 0:00:39]}  Bxa2 {[%clk 0:01:12]} 28. Ra1 {[%clk 0:00:29]}  Bc4 {[%clk 0:01:12]} 29. Rxa7 {[%clk 0:00:11]}  Nxg2 {[%clk 0:01:11]} 30. Kxg2 {[%clk 0:00:12]}  Rf7 {[%clk 0:01:04]} 31. Rfa1 {[%clk 0:00:11]}  f5 {[%clk 0:00:56]} 32. Rxf7 {[%clk 0:00:08]}  Bxf7 {[%clk 0:00:50]} 33. Kf2 {[%clk 0:00:08]}  e4 {[%clk 0:00:49]} 34. Rg1 {[%clk 0:00:07]}  Kh8 {[%clk 0:00:48]} 35. h4 {[%clk 0:00:01]}  Ra8 {[%clk 0:00:48]} 36. Rg5 {[%clk 0:00:01]}  Ra2 {[%clk 0:00:48]} 37. Ke3 {[%clk 0:00:01]}  Bh6 {[%clk 0:00:48]} 0-1


[Site "https://www.chess.com"]

[Event "Titled Tuesday Blitz March 21 Late 2023"]
[White "Gharibyan, Mamikon"]
[Black "Domingo Nunez, Ruben"]
[WhiteFideId "13308300"]
[BlackFideId "22245570"]
[WhiteElo "2445"]
[BlackElo "2404"]
[Result "1-0"]
[Round "11"]
[TimeControl "180+2"]
[Date "2023.03.21"]
[WhiteClock "0:00:07"]
[BlackClock "0:00:02"]

1. e4 {[%clk 0:03:00]}  g6 {[%clk 0:02:56]} 2. h4 {[%clk 0:02:57]}  Bg7 {[%clk 0:02:57]} 3. h5 {[%clk 0:02:57]}  d5 {[%clk 0:02:57]} 4. Nc3 {[%clk 0:02:49]}  dxe4 {[%clk 0:02:56]} 5. Nxe4 {[%clk 0:02:47]}  Qd5 {[%clk 0:02:57]} 6. d3 {[%clk 0:02:36]}  Bf5 {[%clk 0:02:57]} 7. h6 {[%clk 0:02:32]}  Be5 {[%clk 0:02:54]} 8. Nc3 {[%clk 0:02:29]}  Qe6 {[%clk 0:02:50]} 9. Be2 {[%clk 0:02:19]}  Nc6 {[%clk 0:02:47]} 10. Be3 {[%clk 0:02:18]}  Nf6 {[%clk 0:02:45]} 11. Nf3 {[%clk 0:02:16]}  Ng4 {[%clk 0:02:34]} 12. Nxe5 {[%clk 0:01:42]}  Nxe3 {[%clk 0:02:32]} 13. fxe3 {[%clk 0:01:43]}  Qxe5 {[%clk 0:02:33]} 14. Kf2 {[%clk 0:01:43]}  O-O-O {[%clk 0:02:28]} 15. Bf3 {[%clk 0:01:37]}  Qf6 {[%clk 0:02:22]} 16. Qe2 {[%clk 0:01:23]}  Ne5 {[%clk 0:02:21]} 17. Raf1 {[%clk 0:01:24]}  Ng4+ {[%clk 0:01:34]} 18. Kg1 {[%clk 0:01:20]}  Qg5 {[%clk 0:01:33]} 19. e4 {[%clk 0:01:13]}  Be6 {[%clk 0:01:32]} 20. Bxg4 {[%clk 0:01:11]}  Bxg4 {[%clk 0:01:33]} 21. Qf2 {[%clk 0:01:11]}  Kb8 {[%clk 0:01:17]} 22. Qxf7 {[%clk 0:01:04]}  Bf5 {[%clk 0:00:36]} 23. Nd1 {[%clk 0:00:21]}  Rhf8 {[%clk 0:00:16]} 24. Qc4 {[%clk 0:00:14]}  Bg4 {[%clk 0:00:12]} 25. Nf2 {[%clk 0:00:08]}  Qe3 {[%clk 0:00:12]} 26. Qc3 {[%clk 0:00:07]}  Be2 {[%clk 0:00:06]} 27. Qe1 {[%clk 0:00:06]}  Rf7 {[%clk 0:00:03]} 28. Rh3 {[%clk 0:00:06]}  Qc5 {[%clk 0:00:01]} 29. Qxe2 {[%clk 0:00:06]}  Rdf8 {[%clk 0:00:01]} 30. c3 {[%clk 0:00:06]}  b5 {[%clk 0:00:01]} 31. d4 {[%clk 0:00:06]}  Qb6 {[%clk 0:00:01]} 32. e5 {[%clk 0:00:06]}  e6 {[%clk 0:00:02]} 33. Rf3 {[%clk 0:00:07]} 1-0


[Site "https://www.chess.com"]

[Event "Titled Tuesday Blitz March 21 Late 2023"]
[White "Costachi, Mihnea"]
[Black "Vlassov, Nikolai"]
[WhiteFideId "1217518"]
[BlackFideId "4103360"]
[WhiteElo "2456"]
[BlackElo "2324"]
[Result "0-1"]
[Round "11"]
[TimeControl "180+2"]
[Date "2023.03.21"]
[WhiteClock "0:00:01"]
[BlackClock "0:00:03"]

1. Nc3 {[%clk 0:03:00]}  d5 {[%clk 0:02:59]} 2. d4 {[%clk 0:03:01]}  Nf6 {[%clk 0:02:57]} 3. Bf4 {[%clk 0:03:01]}  e6 {[%clk 0:02:52]} 4. e3 {[%clk 0:03:02]}  Bb4 {[%clk 0:02:48]} 5. Bd3 {[%clk 0:03:01]}  c5 {[%clk 0:02:46]} 6. dxc5 {[%clk 0:03:02]}  Bxc3+ {[%clk 0:02:42]} 7. bxc3 {[%clk 0:03:02]}  Qa5 {[%clk 0:02:41]} 8. Ne2 {[%clk 0:02:56]}  Qxc5 {[%clk 0:02:41]} 9. O-O {[%clk 0:02:57]}  O-O {[%clk 0:02:39]} 10. Rb1 {[%clk 0:02:38]}  a6 {[%clk 0:02:35]} 11. a4 {[%clk 0:02:24]}  Nc6 {[%clk 0:02:33]} 12. Bg5 {[%clk 0:02:24]}  Ne4 {[%clk 0:02:25]} 13. Bf4 {[%clk 0:02:03]}  e5 {[%clk 0:02:04]} 14. Bg3 {[%clk 0:02:00]}  Bg4 {[%clk 0:01:44]} 15. Bxe4 {[%clk 0:01:25]}  dxe4 {[%clk 0:01:42]} 16. Rxb7 {[%clk 0:01:24]}  Rab8 {[%clk 0:01:34]} 17. Rxb8 {[%clk 0:01:21]}  Rxb8 {[%clk 0:01:34]} 18. f3 {[%clk 0:01:18]}  exf3 {[%clk 0:01:31]} 19. gxf3 {[%clk 0:01:19]}  Bh3 {[%clk 0:01:27]} 20. Rf2 {[%clk 0:01:14]}  Qxe3 {[%clk 0:01:24]} 21. f4 {[%clk 0:01:06]}  Rd8 {[%clk 0:01:17]} 22. Qe1 {[%clk 0:00:58]}  Rd2 {[%clk 0:01:11]} 23. fxe5 {[%clk 0:00:50]}  Rxc2 {[%clk 0:01:05]} 24. Bf4 {[%clk 0:00:40]}  Qe4 {[%clk 0:00:59]} 25. Qd1 {[%clk 0:00:34]}  Rb2 {[%clk 0:00:21]} 26. Ng3 {[%clk 0:00:13]}  Rb1 {[%clk 0:00:20]} 27. Bc1 {[%clk 0:00:13]}  Qxe5 {[%clk 0:00:19]} 28. Qd2 {[%clk 0:00:02]}  h6 {[%clk 0:00:17]} 29. Ne2 {[%clk 0:00:02]}  Qe4 {[%clk 0:00:13]} 30. Ng3 {[%clk 0:00:01]}  Qxa4 {[%clk 0:00:12]} 31. Ne2 {[%clk 0:00:02]}  Ne5 {[%clk 0:00:11]} 32. Qd8+ {[%clk 0:00:01]}  Kh7 {[%clk 0:00:11]} 33. Qd2 {[%clk 0:00:02]}  Qg4+ {[%clk 0:00:10]} 34. Ng3 {[%clk 0:00:02]}  g6 {[%clk 0:00:06]} 35. Qc2 {[%clk 0:00:01]}  Ra1 {[%clk 0:00:05]} 36. Kh1 {[%clk 0:00:01]}  Qc4 {[%clk 0:00:03]} 0-1


[Site "https://www.chess.com"]